bitfinex/quotes_BTCUSD_20240803
["timestamp","ask_amount","ask_price","bid_price","bid_amount"]
[1722722732312,0.02585217,60679.0,60678.0,1.81598689]
[1722722732542,0.00157439,60696.0,60686.0,0.329564]
[1722722732757,0.00157439,60696.0,60695.0,0.02]
[1722722732962,0.164755,60696.0,60695.0,0.02]
[1722722733815,0.385353,60697.0,60695.0,0.02]
[1722722734047,0.385352,60697.0,60696.0,0.02]
[1722722734280,0.714857,60697.0,60696.0,0.02]
[1722722734444,0.385352,60697.0,60696.0,0.02]
[1722722735402,0.2206,60697.0,60696.0,0.02]
[1722722736388,0.2206,60697.0,60694.0,0.16476]
[1722722736815,0.2206,60697.0,60696.0,0.514266]
[1722722737236,0.2206,60704.0,60703.0,0.02]
[1722722737437,0.00083,60707.0,60706.0,0.184728]
[1722722737789,0.00083,60707.0,60706.0,0.02]
[1722722738034,0.00083,60707.0,60706.0,0.84364]
[1722722738249,0.00083,60707.0,60706.0,1.173096]
[1722722738831,0.00083,60707.0,60706.0,1.33884689]
[1722722739191,0.00083,60707.0,60706.0,1.66830289]
[1722722739391,0.00083,60707.0,60706.0,1.84590289]
[1722722739590,0.00083,60707.0,60706.0,2.27535889]
[1722722739814,0.00083,60707.0,60706.0,1.94590289]
[1722722740410,0.02666286,60707.0,60706.0,1.95590289]
[1722722740611,0.00196297,60707.0,60706.0,2.10190289]
[1722722740800,0.00196297,60707.0,60706.0,2.18248886]
[1722722741013,0.385257,60732.0,60731.0,0.02]
[1722722741254,0.22740509,60732.0,60731.0,0.02]
[1722722741461,0.00680509,60732.0,60731.0,0.02]
[1722722741613,0.00680509,60732.0,60731.0,0.513981]
[1722722741819,0.2206,60739.0,60726.0,0.483944]
[1722722741820,0.38524,60739.0,60738.0,0.02]
[1722722742025,0.22699393,60739.0,60738.0,0.02]
[1722722742593,0.22699393,60739.0,60738.0,0.513924]
[1722722743245,0.2206,60739.0,60738.0,0.513924]
[1722722743649,0.22706008,60739.0,60738.0,0.184641]
[1722722743906,0.25288535,60739.0,60738.0,0.02]
[1722722744033,0.74680035,60739.0,60738.0,0.02]
[1722722744236,0.25288535,60739.0,60738.0,0.02]
[1722722745426,0.22706008,60739.0,60738.0,0.02]
[1722722745880,0.72097508,60739.0,60738.0,0.01]
[1722722746081,1.21600297,60739.0,60738.0,0.01]
[1722722746278,1.54527997,60739.0,60738.0,0.01]
[1722722746688,1.54527997,60739.0,60724.0,0.49750831]
[1722722746689,0.22706008,60739.0,60724.0,0.49750831]
[1722722747034,0.22706008,60739.0,60726.0,0.329344]
[1722722747035,0.329284,60738.0,60726.0,0.329344]
[1722722747237,0.22706008,60739.0,60735.0,0.329298]
[1722722747470,0.00645313,60737.0,60736.0,0.164646]
[1722722747679,0.2206,60739.0,60737.0,0.164644]
[1722722747884,0.2206,60739.0,60733.0,0.164652]
[1722722747885,0.164642,60738.0,60733.0,0.164652]
[1722722748091,0.164642,60738.0,60734.0,0.164651]
[1722722748291,0.2206,60739.0,60733.0,0.329305]
[1722722748521,0.2206,60739.0,60736.0,0.164645]
[1722722748749,0.02582665,60738.0,60736.0,0.164646]
[1722722749137,0.2206,60739.0,60735.0,0.164648]
[1722722749329,0.2206,60739.0,60732.0,0.329314]
[1722722749505,0.08291805,60735.0,60733.0,0.164654]
[1722722749705,0.08291805,60735.0,60724.0,0.329357]
[1722722749908,0.00157439,60734.0,60732.0,0.164657]
[1722722750111,0.08291805,60735.0,60732.0,0.164657]
[1722722750715,0.08291805,60735.0,60729.0,0.32933]
[1722722750716,0.164652,60734.0,60730.0,0.164663]
[1722722750935,0.2206,60732.0,60728.0,0.164667]
[1722722751132,0.2206,60732.0,60710.0,0.01]
[1722722751133,0.2206,60732.0,60718.0,0.1546]
[1722722751283,0.164669,60728.0,60724.0,0.164678]
[1722722751489,0.08291805,60735.0,60718.0,0.1546]
[1722722751711,0.08291805,60728.0,60718.0,0.1546]
[1722722751915,0.00157439,60727.0,60726.0,0.494022]
[1722722752160,0.1762,60729.0,60718.0,0.1546]
[1722722752161,0.1762,60729.0,60728.0,0.164668]
[1722722752365,0.1762,60729.0,60728.0,0.494005]
[1722722752534,0.20202905,60729.0,60728.0,0.823342]
[1722722752759,0.02582905,60729.0,60728.0,0.494005]
[1722722752959,0.20202905,60729.0,60728.0,0.494005]
[1722722753306,0.02582905,60729.0,60728.0,0.823342]
[1722722753482,0.02582905,60729.0,60728.0,1.31842989]
[1722722754420,0.02582905,60729.0,60728.0,0.98909289]
[1722722754921,0.02582905,60729.0,60728.0,1.31842989]
[1722722755486,0.02582905,60729.0,60728.0,1.64776689]
[1722722755852,0.02582905,60729.0,60728.0,1.34142989]
[1722722756164,0.164624,60745.0,60733.0,0.329308]
[1722722756367,0.2202,60746.0,60739.0,0.329273]
[1722722756562,0.00641839,60744.0,60739.0,0.329273]
[1722722756773,0.00642186,60745.0,60740.0,0.329269]
[1722722756934,0.00641144,60743.0,60734.0,0.329302]
[1722722757137,0.17103991,60744.0,60741.0,0.164632]
[1722722757299,0.17103991,60744.0,60742.0,0.16463]
[1722722757300,0.00641491,60744.0,60742.0,0.16463]
[1722722757497,0.2202,60746.0,60740.0,0.329269]
[1722722757699,0.00641838,60745.0,60743.0,0.164627]
[1722722757953,0.00641838,60745.0,60739.0,0.164638]
[1722722757954,0.164628,60743.0,60739.0,0.164638]
[1722722758155,0.00641838,60745.0,60743.0,0.164627]
[1722722758500,0.2202,60746.0,60741.0,0.493899]
[1722722758501,0.00640796,60742.0,60741.0,0.493899]
[1722722758631,0.38482,60746.0,60742.0,0.16463]
[1722722758830,0.38482,60746.0,60744.0,0.164624]
[1722722758831,0.2202,60746.0,60744.0,0.164624]
[1722722759056,0.00641838,60745.0,60744.0,0.164624]
[1722722759701,0.00641838,60745.0,60744.0,1.152374]
[1722722760131,0.00157439,60752.0,60751.0,0.164606]
[1722722760292,0.2202,60753.0,60748.0,0.329225]
[1722722760563,0.00649141,60752.0,60739.0,0.16575089]
[1722722760802,0.00649141,60752.0,60751.0,0.164606]
[1722722761068,0.00649141,60752.0,60751.0,0.493818]
[1722722761327,0.00649141,60752.0,60751.0,0.82303]
[1722722761745,0.00083,60758.0,60756.0,0.16459]
[1722722762202,0.00083,60758.0,60742.0,0.329261]
[1722722762203,0.00083,60758.0,60757.0,0.49377]
[1722722762424,0.00651568,60757.0,60756.0,0.16459]
[1722722762645,0.00083,60758.0,60757.0,0.16459]
[1722722762847,0.02664787,60758.0,60757.0,0.49377]
[1722722763077,0.00083,60758.0,60757.0,0.82295]
[1722722763509,0.00083,60758.0,60755.0,0.329189]
[1722722763715,0.00083,60758.0,60744.0,0.16575089]
[1722722763956,0.00083,60758.0,60757.0,0.16459]
[1722722764165,0.00083,60758.0,60757.0,0.82295]
[1722722765188,0.00083,60758.0,60757.0,0.49377]
[1722722765390,0.00083,60758.0,60757.0,0.82295]
[1722722767648,0.00083,60758.0,60757.0,1.31788089]
[1722722767858,0.00083,60758.0,60757.0,1.34088089]
[1722722769291,0.00083,60758.0,60757.0,0.82295]
[1722722769520,0.00083,60758.0,60739.0,0.002]
[1722722769521,0.00736895,60758.0,60741.0,0.1171]
[1722722769794,0.08291805,60745.0,60744.0,0.493875]
[1722722770009,0.08291805,60745.0,60738.0,0.1429]
[1722722770235,0.2202,60739.0,60727.0,0.118013]
[1722722770435,0.08449244,60738.0,60731.0,0.329317]
[1722722770644,0.08449244,60738.0,60728.0,0.16575089]
[1722722770645,0.329289,60737.0,60728.0,0.16575089]
[1722722770847,0.00807143,60738.0,60734.0,0.164651]
[1722722770848,0.00157439,60736.0,60734.0,0.164651]
[1722722771050,0.00157439,60736.0,60733.0,0.164654]
[1722722771051,0.00670216,60736.0,60733.0,0.164654]
[1722722771249,0.2202,60739.0,60734.0,0.493956]
[1722722771250,0.00826763,60735.0,60734.0,0.493956]
[1722722771462,0.00669324,60735.0,60734.0,0.164652]
[1722722771847,0.384839,60739.0,60734.0,0.164652]
[1722722771848,0.00157439,60738.0,60736.0,0.164646]
[1722722771976,0.00157439,60738.0,60734.0,0.164649]
[1722722771977,0.00670115,60735.0,60734.0,0.164649]
[1722722772179,0.00157439,60738.0,60728.0,0.16575089]
[1722722772180,0.329283,60738.0,60728.0,0.16575089]
[1722722772380,0.00668052,60735.0,60728.0,0.16575089]
[1722722772583,0.13547439,60737.0,60733.0,0.164655]
[1722722772584,0.00157439,60734.0,60733.0,0.164655]
[1722722772788,0.164642,60738.0,60730.0,0.329326]
[1722722772789,0.00157439,60736.0,60734.0,0.164651]
[1722722772988,0.00157439,60737.0,60734.0,0.164651]
[1722722773408,0.2202,60739.0,60728.0,0.16575089]
[1722722773625,0.16621639,60738.0,60734.0,0.164651]
[1722722773779,0.2202,60739.0,60732.0,0.329315]
[1722722774014,0.00157439,60738.0,60732.0,0.329315]
[1722722774400,0.02740082,60738.0,60735.0,0.164648]
[1722722774592,0.02582643,60738.0,60736.0,0.164646]
[1722722775330,0.164641,60738.0,60735.0,0.164648]
[1722722775531,0.2202,60739.0,60736.0,0.164645]
[1722722775906,0.2202,60739.0,60736.0,0.164646]
[1722722775907,0.384839,60739.0,60736.0,0.164646]
[1722722776108,0.2202,60739.0,60736.0,0.164646]
[1722722776797,0.384839,60739.0,60735.0,0.164648]
[1722722777030,0.1339,60745.0,60733.0,0.00329293]
[1722722777234,0.00157439,60743.0,60742.0,0.16463]
[1722722777461,0.00671564,60743.0,60742.0,0.16463]
[1722722777662,0.2202,60746.0,60742.0,0.16463]
[1722722777663,0.384821,60746.0,60742.0,0.16463]
[1722722778079,0.00669871,60745.0,60742.0,0.16463]
[1722722778311,0.08961676,60745.0,60727.0,0.04527008]
[1722722778504,0.2202,60732.0,60728.0,0.16575089]
[1722722778706,0.2202,60732.0,60731.0,0.493981]
[1722722778840,0.329267,60741.0,60731.0,0.329321]
[1722722778841,0.2202,60739.0,60731.0,0.329321]
[1722722779063,0.2202,60739.0,60735.0,0.164649]
[1722722779274,0.2202,60739.0,60736.0,0.164646]
[1722722779454,0.164642,60738.0,60735.0,0.164648]
[1722722779656,0.2202,60739.0,60735.0,0.164649]
[1722722779882,0.384839,60739.0,60736.0,0.164646]
[1722722780080,0.384839,60739.0,60728.0,0.16575089]
[1722722780081,0.2202,60747.0,60730.0,0.00329293]
[1722722780282,0.164631,60742.0,60731.0,0.18875089]
[1722722780486,0.2202,60747.0,60742.0,0.164628]
[1722722780686,0.164644,60737.0,60732.0,0.329311]
[1722722781079,0.164644,60737.0,60733.0,0.164654]
[1722722781322,0.164647,60736.0,60731.0,0.329317]
[1722722781561,0.2202,60739.0,60733.0,0.329309]
[1722722781766,0.164645,60737.0,60733.0,0.164652]
[1722722781961,0.2202,60739.0,60728.0,0.24866894]
[1722722782173,0.2202,60739.0,60734.0,0.329301]
[1722722782372,0.329265,60742.0,60734.0,0.329304]
[1722722782373,0.164631,60742.0,60734.0,0.329304]
[1722722782504,0.164631,60742.0,60738.0,0.16464]
[1722722782706,0.164637,60740.0,60736.0,0.164646]
[1722722782917,0.2202,60753.0,60745.0,0.65849]
[1722722783123,0.2817,60750.0,60749.0,0.164611]
[1722722783315,0.2817,60750.0,60748.0,0.493842]
[1722722783316,0.02582315,60749.0,60748.0,0.493842]
[1722722783518,0.02582315,60749.0,60737.0,0.16575089]
[1722722783519,0.02582315,60749.0,60741.0,0.04885261]
[1722722783721,0.176,60750.0,60749.0,0.164611]
[1722722784694,0.176,60750.0,60749.0,0.493834]
[1722722784900,0.164613,60749.0,60743.0,0.329252]
[1722722785107,0.164613,60749.0,60740.0,0.32927]
[1722722785108,0.176,60744.0,60740.0,0.32927]
[1722722785385,0.2201,60745.0,60741.0,0.329265]
[1722722785584,0.00830517,60743.0,60742.0,0.49389]
[1722722785801,0.164606,60751.0,60747.0,0.164616]
[1722722786007,0.2201,60752.0,60746.0,0.329235]
[1722722786120,0.2201,60752.0,60740.0,0.04885261]
[1722722786121,0.2201,60752.0,60740.0,0.329269]
[1722722786327,0.329225,60749.0,60741.0,0.329265]
[1722722786526,0.2201,60745.0,60738.0,0.04894855]
[1722722786737,0.2201,60745.0,60737.0,0.04894855]
[1722722786934,0.2201,60745.0,60744.0,0.164625]
[1722722787379,0.2201,60745.0,60742.0,0.16463]
[1722722787555,0.2201,60745.0,60736.0,0.04894855]
[1722722787928,0.16461,60750.0,60746.0,0.164617]
[1722722788135,0.164612,60749.0,60746.0,0.164617]
[1722722788251,0.164613,60749.0,60737.0,0.16575089]
[1722722788461,0.493836,60749.0,60745.0,0.164622]
[1722722788661,0.164613,60749.0,60745.0,0.164622]
[1722722789107,0.164613,60749.0,60745.0,0.16462]
[1722722789940,0.164615,60748.0,60744.0,0.164624]
[1722722790269,0.2201,60752.0,60750.0,0.164608]
[1722722790565,0.2201,60752.0,60749.0,0.164611]
[1722722790739,0.2201,60752.0,60750.0,0.164609]
[1722722791081,0.2201,60759.0,60757.0,0.16459]
[1722722791243,0.2201,60759.0,60757.0,0.49377]
[1722722791689,0.2201,60759.0,60757.0,0.16459]
[1722722791870,0.2201,60759.0,60757.0,0.49377]
[1722722792233,0.2201,60759.0,60757.0,0.82295]
[1722722792432,0.00714004,60758.0,60757.0,0.82295]
[1722722792651,0.00083,60758.0,60757.0,0.82295]
[1722722792854,0.00083,60758.0,60757.0,1.15213]
[1722722793056,0.00083,60758.0,60757.0,0.82295]
[1722722793971,0.00083,60758.0,60757.0,1.31788089]
[1722722794226,0.00083,60758.0,60757.0,1.34088089]
[1722722794357,0.00083,60758.0,60757.0,1.47988089]
[1722722794761,0.02664493,60758.0,60757.0,1.47988089]
[1722722794985,0.00083,60758.0,60757.0,1.47988089]
[1722722795364,0.00083,60758.0,60757.0,1.80906089]
[1722722795970,0.00083,60758.0,60757.0,1.47988089]
[1722722796469,0.08291805,60774.0,60757.0,1.47988089]
[1722722796470,4.01428,60799.0,60789.0,1.235921]
[1722722796672,0.49750831,60798.0,60789.0,1.86367789]
[1722722796854,4.01428,60799.0,60795.0,0.164487]
[1722722797066,4.01428,60799.0,60798.0,1.245753]
[1722722797184,4.01428,60799.0,60798.0,1.697741]
[1722722797387,4.01428,60799.0,60798.0,1.88849189]
[1722722797586,4.01428,60799.0,60798.0,2.47826732]
[1722722798084,4.0400743,60799.0,60798.0,2.47826732]
[1722722799246,4.0400743,60799.0,60798.0,2.12930932]
[1722722799430,4.0400743,60799.0,60798.0,1.99669189]
[1722722800130,4.0400743,60799.0,60798.0,2.05998091]
[1722722800301,4.0400743,60799.0,60798.0,2.12135526]
[1722722800865,4.0400743,60799.0,60798.0,2.05798091]
[1722722801062,4.0400743,60799.0,60798.0,1.34010389]
[1722722802085,4.0400743,60799.0,60798.0,1.66906189]
[1722722804793,4.0400743,60799.0,60798.0,1.67106189]
[1722722805137,4.0400743,60799.0,60798.0,1.66906189]
[1722722805989,4.0400743,60799.0,60798.0,1.68106189]
[1722722806160,4.01428,60799.0,60798.0,1.67106189]
[1722722806388,4.01428,60799.0,60798.0,1.70407189]
[1722722806562,4.01428,60799.0,60798.0,1.67106189]
[1722722807039,4.01428,60799.0,60798.0,1.68106189]
[1722722807229,4.01428,60799.0,60798.0,1.77106189]
[1722722807416,4.02608808,60799.0,60798.0,1.76906189]
[1722722807760,4.02608808,60799.0,60798.0,1.83495089]
[1722722807934,4.02608808,60799.0,60798.0,1.84695089]
[1722722808295,4.02608808,60799.0,60798.0,1.83495089]
[1722722808634,4.02608808,60799.0,60798.0,1.83695089]
[1722722808991,4.02608808,60799.0,60798.0,1.83495089]
[1722722810003,4.02608808,60799.0,60798.0,0.230368]
[1722722810206,4.02608808,60799.0,60783.0,1.2617]
[1722722810207,4.24618808,60799.0,60783.0,1.2617]
[1722722810597,4.24618808,60799.0,60773.0,0.1458]
[1722722810598,0.1058,60787.0,60786.0,1.15158]
[1722722810781,0.1058,60787.0,60786.0,1.31733089]
[1722722810984,0.02580015,60797.0,60786.0,1.31733089]
[1722722810985,0.02580015,60797.0,60796.0,0.493453]
[1722722811185,0.02580015,60797.0,60796.0,0.164484]
[1722722811419,0.14375069,60797.0,60796.0,0.493453]
[1722722811624,0.14375069,60797.0,60796.0,0.822422]
[1722722811832,0.14375069,60797.0,60796.0,1.151391]
[1722722812067,0.03795069,60797.0,60796.0,0.822422]
[1722722812243,0.03795069,60797.0,60796.0,0.98817289]
[1722722813208,0.03795069,60797.0,60796.0,1.31714189]
[1722722814030,0.03795069,60797.0,60796.0,1.34014189]
[1722722814868,0.03795069,60797.0,60796.0,1.01117289]
[1722722815079,0.03795069,60797.0,60796.0,0.493453]
[1722722815650,0.03795069,60797.0,60796.0,0.98817289]
[1722722817681,0.03795069,60797.0,60796.0,1.31714189]
[1722722817876,0.01215054,60797.0,60796.0,1.31714189]
[1722722818083,0.01215054,60797.0,60796.0,0.98817289]
[1722722818255,4.01428,60799.0,60798.0,0.493437]
[1722722818461,4.01428,60799.0,60798.0,1.151353]
[1722722819576,4.01428,60799.0,60798.0,0.822395]
[1722722820761,4.01428,60799.0,60798.0,1.151353]
[1722722820888,4.01428,60799.0,60798.0,0.822395]
[1722722821298,4.04007865,60799.0,60798.0,0.822395]
[1722722822255,4.01428,60799.0,60798.0,0.822395]
[1722722822452,4.02821402,60799.0,60798.0,0.822395]
[1722722822606,4.02821402,60799.0,60798.0,1.01114589]
[1722722823011,4.02821402,60799.0,60798.0,0.493437]
[1722722823218,4.02821402,60799.0,60786.0,0.00978467]
[1722722823219,4.02821402,60799.0,60786.0,0.01135906]
[1722722823435,4.02821402,60799.0,60787.0,0.18875089]
[1722722823636,4.02821402,60799.0,60798.0,0.164479]
[1722722823838,4.02821402,60799.0,60798.0,0.98814589]
[1722722824039,4.02821402,60799.0,60798.0,1.34010389]
[1722722824640,4.02821402,60799.0,60798.0,1.44010389]
[1722722825067,4.02821402,60799.0,60798.0,1.41710389]
[1722722825391,4.02821402,60799.0,60798.0,1.08814589]
[1722722825687,4.02821402,60799.0,60798.0,0.65918789]
[1722722825688,4.05401133,60799.0,60798.0,0.65918789]
[1722722825914,4.02821402,60799.0,60798.0,0.65918789]
[1722722826450,4.02821402,60799.0,60798.0,0.98814589]
[1722722826813,4.02821402,60799.0,60798.0,1.31710389]
[1722722827789,4.02821402,60799.0,60798.0,1.48800933]
[1722722827942,4.02821402,60799.0,60798.0,0.98814589]
[1722722829468,4.02821402,60799.0,60798.0,1.31710389]
[1722722829670,4.02821402,60799.0,60798.0,1.48801107]
[1722722829886,4.02821402,60799.0,60798.0,1.48801262]
[1722722830095,4.02821402,60799.0,60798.0,1.48801212]
[1722722833055,4.02821402,60799.0,60798.0,1.51101212]
[1722722833255,4.02821402,60799.0,60798.0,1.61101212]
[1722722833676,4.05401092,60799.0,60798.0,1.61099948]
[1722722833809,4.05301092,60799.0,60798.0,1.61099887]
[1722722834011,4.05301092,60799.0,60798.0,1.44010389]
[1722722834214,4.02721402,60799.0,60798.0,1.61099887]
[1722722834749,4.02721402,60799.0,60798.0,1.93995687]
[1722722835166,4.02721402,60799.0,60798.0,2.00584687]
[1722722835365,4.02721402,60799.0,60798.0,1.67688887]
[1722722836011,4.02721402,60799.0,60798.0,2.00584687]
[1722722836980,4.02721402,60799.0,60798.0,1.67688887]
[1722722837210,4.02721402,60799.0,60798.0,1.50599389]
[1722722837495,4.05301053,60799.0,60798.0,1.77403846]
[1722722837720,4.05301053,60799.0,60798.0,2.1029965]
[1722722837950,4.05301053,60799.0,60798.0,1.67688828]
[1722722838336,4.05301053,60799.0,60798.0,1.79832606]
[1722722838699,4.02721402,60799.0,60798.0,1.79832606]
[1722722838943,4.02721402,60799.0,60798.0,1.79889113]
[1722722839301,4.02721402,60799.0,60798.0,1.67688828]
[1722722839518,4.02721402,60799.0,60798.0,0.23678439]
[1722722839766,0.164481,60797.0,60796.0,0.000913]
[1722722839977,0.1757,60797.0,60796.0,0.000913]
[1722722840189,0.35218321,60797.0,60796.0,0.000913]
[1722722840394,0.18770221,60797.0,60796.0,0.000913]
[1722722841135,0.164503,60789.0,60788.0,0.00984435]
[1722722841368,0.761606,60789.0,60782.0,0.04886916]
[1722722841561,0.44442163,60789.0,60788.0,0.164506]
[1722722841723,0.44442163,60789.0,60788.0,0.493518]
[1722722841926,0.4326,60789.0,60788.0,0.493518]
[1722722842121,0.44443039,60789.0,60788.0,0.493518]
[1722722842376,0.47023402,60789.0,60788.0,0.493518]
[1722722842576,0.12303039,60789.0,60788.0,0.493518]
[1722722842778,0.01183039,60789.0,60788.0,1.20041116]
[1722722842980,0.1112,60795.0,60794.0,0.822447]
[1722722843177,0.12303485,60795.0,60790.0,0.04899716]
[1722722843384,0.1757,60791.0,60789.0,0.00157439]
[1722722843592,0.01184777,60790.0,60789.0,0.16607739]
[1722722843791,0.01184777,60790.0,60789.0,0.493509]
[1722722843995,0.01184777,60790.0,60789.0,0.822515]
[1722722844206,0.1757,60791.0,60790.0,0.493501]
[1722722844409,0.1112,60795.0,60793.0,0.16449]
[1722722844649,0.1112,60795.0,60794.0,0.00157439]
[1722722844886,0.275687,60795.0,60791.0,0.16607039]
[1722722845002,0.164503,60789.0,60788.0,0.00977177]
[1722722845206,0.1757,60791.0,60783.0,0.00157439]
[1722722845427,0.1757,60791.0,60790.0,0.493501]
[1722722845648,0.1757,60791.0,60790.0,0.822502]
[1722722847830,0.1112,60795.0,60794.0,0.164489]
[1722722848034,0.1112,60795.0,60784.0,0.16575089]
[1722722848035,0.1112,60795.0,60786.0,0.32902]
[1722722848231,0.300906,60788.0,60787.0,0.00157439]
[1722722848458,0.1364,60788.0,60779.0,0.4684]
[1722722848672,0.1364,60788.0,60787.0,0.164508]
[1722722848848,0.1364,60788.0,60779.0,0.63415089]
[1722722848849,0.1364,60788.0,60784.0,0.164516]
[1722722849050,0.02580384,60786.0,60779.0,0.64413883]
[1722722849413,0.02580384,60786.0,60785.0,0.493542]
[1722722849530,0.02580384,60786.0,60785.0,0.82257]
[1722722849980,0.02580384,60786.0,60785.0,1.151598]
[1722722850385,0.1757,60789.0,60788.0,0.493518]
[1722722850584,0.18745411,60789.0,60788.0,0.82253]
[1722722850988,0.18745411,60789.0,60788.0,0.164506]
[1722722851386,0.18745411,60789.0,60785.0,0.164512]
[1722722851592,0.35195811,60789.0,60785.0,0.164512]
[1722722851817,0.18745411,60789.0,60788.0,0.164506]
[1722722853417,0.18745411,60789.0,60787.0,0.164508]
[1722722853633,0.21325816,60789.0,60788.0,0.164506]
[1722722853828,0.21325816,60789.0,60788.0,0.493518]
[1722722854067,0.18745411,60789.0,60788.0,0.82253]
[1722722854270,0.18745411,60789.0,60788.0,0.493518]
[1722722854472,0.18745411,60789.0,60787.0,0.164508]
[1722722854877,0.18745411,60789.0,60788.0,0.164506]
[1722722855499,0.18745411,60789.0,60788.0,0.493518]
[1722722855931,0.1757,60789.0,60788.0,0.493518]
[1722722856138,0.18740311,60789.0,60788.0,0.493518]
[1722722856516,0.18740311,60789.0,60786.0,0.32902]
[1722722856675,0.18740311,60789.0,60788.0,0.164506]
[1722722857090,0.18740311,60789.0,60786.0,0.164509]
[1722722857291,0.21320697,60789.0,60787.0,0.164506]
[1722722857721,0.21320697,60789.0,60788.0,0.000913]
[1722722858139,0.21320697,60789.0,60788.0,0.165419]
[1722722858763,0.37770997,60789.0,60788.0,0.000913]
[1722722859165,0.21320697,60789.0,60788.0,0.000913]
[1722722860146,1.36472797,60789.0,60788.0,0.000913]
[1722722860347,1.28172197,60789.0,60788.0,0.000913]
[1722722861120,1.28172197,60789.0,60788.0,0.494431]
[1722722861121,0.14890697,60789.0,60788.0,0.494431]
[1722722861548,0.14890697,60789.0,60788.0,0.823443]
[1722722861794,0.03750697,60789.0,60788.0,1.152455]
[1722722861951,0.02580386,60789.0,60788.0,1.152455]
[1722722864005,0.02580386,60789.0,60788.0,1.77021789]
[1722722864546,0.00083,60796.0,60788.0,1.77021789]
[1722722864547,0.00083,60796.0,60795.0,1.151409]
[1722722864676,0.00083,60796.0,60795.0,1.31715989]
[1722722864879,0.01263712,60796.0,60795.0,1.31715989]
[1722722865089,0.00083,60796.0,60795.0,1.31715989]
[1722722865308,0.01273751,60796.0,60795.0,1.31715989]
[1722722865508,0.00083,60796.0,60795.0,1.31715989]
[1722722865710,0.01265102,60796.0,60795.0,1.31715989]
[1722722865912,0.00083,60796.0,60795.0,1.31715989]
[1722722866132,0.01266285,60796.0,60795.0,1.31715989]
[1722722866360,0.00083,60796.0,60795.0,1.31715989]
[1722722866558,0.01265102,60796.0,60795.0,2.22100789]
[1722722866789,0.00083,60796.0,60795.0,2.09367701]
[1722722866940,0.01250137,60796.0,60795.0,2.09367701]
[1722722867139,0.00083,60796.0,60795.0,2.42265101]
[1722722867342,0.01267732,60796.0,60795.0,2.42265101]
[1722722867583,0.00083,60796.0,60795.0,2.42265101]
[1722722868574,0.00083,60796.0,60795.0,2.42465101]
[1722722868908,0.00083,60796.0,60795.0,2.67748411]
[1722722869110,0.00083,60796.0,60795.0,2.59884099]
[1722722869271,3.980385,60799.0,60798.0,2.183237]
[1722722869474,3.980385,60799.0,60798.0,2.68431003]
[1722722869680,3.99228785,60799.0,60798.0,2.68431003]
[1722722870284,3.99228785,60799.0,60798.0,2.67431003]
[1722722871186,4.01808201,60799.0,60798.0,2.67431003]
[1722722871549,4.01808201,60799.0,60798.0,2.34335203]
[1722722871748,4.01808201,60799.0,60798.0,2.01439403]
[1722722872392,3.99228785,60799.0,60798.0,2.01439403]
[1722722872802,3.99228785,60799.0,60798.0,2.01502526]
[1722722873408,3.99228785,60799.0,60798.0,2.34398326]
[1722722874573,3.99228785,60799.0,60798.0,2.01502526]
[1722722875105,3.99228785,60799.0,60798.0,1.93597189]
[1722722875747,4.01808264,60799.0,60798.0,1.93597189]
[1722722875912,3.99228785,60799.0,60798.0,1.93597189]
[1722722878860,3.99228785,60799.0,60798.0,1.80207189]
[1722722879285,4.01808227,60799.0,60798.0,1.80207189]
[1722722880409,3.99228785,60799.0,60798.0,1.34010389]
[1722722880657,3.99228785,60799.0,60795.0,0.00988133]
[1722722880658,3.99228785,60799.0,60796.0,0.328968]
[1722722880905,0.1757,60797.0,60795.0,0.00988133]
[1722722881125,0.1376,60796.0,60795.0,0.493461]
[1722722881348,0.14961307,60796.0,60795.0,0.493461]
[1722722881816,0.14961307,60796.0,60795.0,0.822435]
[1722722882053,0.14961307,60796.0,60793.0,0.328982]
[1722722882318,0.14961307,60796.0,60795.0,0.164487]
[1722722882585,0.14961307,60796.0,60788.0,0.01082493]
[1722722882586,0.26391307,60796.0,60788.0,0.01082493]
[1722722882825,0.164487,60795.0,60792.0,0.164494]
[1722722883055,0.0119003,60794.0,60793.0,0.164492]
[1722722883556,0.01196214,60794.0,60793.0,0.164492]
[1722722883789,0.416384,60796.0,60792.0,0.164494]
[1722722884009,0.01182077,60795.0,60792.0,0.164494]
[1722722884233,0.0112815,60795.0,60792.0,0.164494]
[1722722884457,0.0112815,60795.0,60789.0,0.16575089]
[1722722884896,0.0112815,60795.0,60792.0,0.164493]
[1722722885362,0.0112815,60795.0,60794.0,0.164489]
[1722722885600,0.0112815,60795.0,60793.0,0.164491]
[1722722886633,0.0112815,60795.0,60794.0,0.164489]
[1722722887745,0.0112815,60795.0,60792.0,0.164493]
[1722722887987,0.1757685,60795.0,60791.0,0.164496]
[1722722888211,0.0112815,60795.0,60792.0,0.164494]
[1722722888421,0.0370825,60795.0,60792.0,0.164494]
[1722722888820,0.0112815,60795.0,60792.0,0.164494]
[1722722889177,0.0112815,60795.0,60794.0,0.164489]
[1722722891622,0.0112815,60795.0,60794.0,0.493468]
[1722722892029,0.0112815,60795.0,60794.0,0.494381]
[1722722892143,0.03708058,60795.0,60794.0,0.165402]
[1722722892807,0.03708058,60795.0,60794.0,0.494381]
[1722722893211,0.0112815,60795.0,60794.0,0.494381]
[1722722893617,0.0112815,60795.0,60794.0,0.000913]
[1722722894366,0.0112815,60795.0,60794.0,0.165402]
[1722722894578,0.0112815,60795.0,60794.0,0.494381]
[1722722895773,0.0112815,60795.0,60794.0,1.47228989]
[1722722895948,0.0112815,60795.0,60794.0,1.90326889]
[1722722896149,3.980385,60799.0,60794.0,1.90326889]
[1722722896150,3.980385,60799.0,60798.0,1.151353]
[1722722896301,3.980385,60799.0,60798.0,1.31710389]
[1722722896914,3.980385,60799.0,60798.0,1.64606189]
[1722722897122,3.980385,60799.0,60798.0,1.76906189]
[1722722897484,3.99225018,60799.0,60798.0,1.76906189]
[1722722897685,3.99225018,60799.0,60798.0,1.77106189]
[1722722897797,3.99225018,60799.0,60798.0,1.84958266]
[1722722898000,3.99225018,60799.0,60798.0,1.77106189]
[1722722898283,3.99225018,60799.0,60798.0,1.8505822]
[1722722898400,3.99225018,60799.0,60798.0,1.77106189]